fUST/lending_fUST_20250225
["ID","MTS","AMOUNT","RATE_DAILY","PERIOD"]
[354416484,1740480612115,-500.0,0.00065753,120]
[354416485,1740480612148,-500.0,0.00065753,120]
[354416486,1740480612183,-500.0,0.00065753,120]
[354416487,1740480612216,-502.44694421,0.00065753,120]
[354416488,1740480612249,-500.0,0.00065753,120]
[354416489,1740480612281,-500.0,0.00065753,120]
[354416490,1740480612313,-500.0,0.00065753,120]
[354416491,1740480612348,-500.0,0.00065753,120]
[354416492,1740480612382,-500.0,0.00065753,120]
[354416493,1740480612519,-500.0,0.00065753,120]
[354416494,1740480612554,-500.0,0.00065753,120]
[354416495,1740480612592,-500.0,0.00065753,120]
[354416496,1740480612626,-504.73725796,0.00065753,120]
[354416497,1740480612658,-500.0,0.00065753,120]
[354416498,1740480612690,-500.0,0.00065753,120]
[354416499,1740480612721,-500.0,0.00065753,120]
[354416500,1740480612751,-1000.0,0.00065753,20]
[354416501,1740480612782,-500.0,0.00065753,120]
[354416502,1740480612813,-500.0,0.00065753,120]
[354416503,1740480612846,-508.23995908,0.00065753,120]
[354416504,1740480612876,-500.0,0.00065753,120]
[354416505,1740480612906,-500.0,0.00065753,30]
[354416506,1740480612937,-500.0,0.00065753,120]
[354416507,1740480612972,-500.0,0.00065753,120]
[354416508,1740480613004,-500.0,0.00065753,120]
[354416509,1740480613038,-500.0,0.00065753,120]
[354416510,1740480613073,-500.0,0.00065753,30]
[354416511,1740480613106,-500.0,0.00065753,120]
[354416512,1740480613137,-500.0,0.00065753,120]
[354416513,1740480613168,-500.0,0.00065753,120]
[354416514,1740480613200,-500.0,0.00065753,120]
[354416515,1740480613231,-500.0,0.00065753,120]
[354416516,1740480613262,-500.0,0.00065753,120]
[354416517,1740480613293,-500.0,0.00065753,120]
[354416518,1740480613327,-500.0,0.00065753,120]
[354416519,1740480613357,-500.0,0.00065753,120]
[354416520,1740480613389,-500.0,0.00065753,120]
[354416521,1740480613420,-2837.22,0.00065753,120]
[354416522,1740480613451,-502.6888307,0.00065753,120]
[354416523,1740480613481,-501.04333188,0.00065753,120]
[354416524,1740480613511,-253.6368,0.00065753,120]
[354416525,1740480613542,-500.0,0.00065753,120]
[354416526,1740480613574,-500.0,0.00065753,120]
[354416527,1740480613604,-500.0,0.00065753,120]
[354416528,1740480613634,-500.0,0.00065753,120]
[354416529,1740480613664,-500.0,0.00065753,120]
[354416530,1740480613706,-537.94144072,0.00065753,120]
[354416531,1740480613748,-500.0,0.00065753,120]
[354416532,1740480613787,-500.0,0.00065753,120]
[354416533,1740480613831,-563.72668217,0.00065753,120]
[354416534,1740480613871,-500.0,0.00065753,120]
[354416535,1740480613914,-500.0,0.00065753,120]
[354416536,1740480613954,-499.22048648,0.00065753,120]
[354416537,1740480613996,-500.0,0.00065753,120]
[354416538,1740480614040,-500.0,0.00065753,120]
[354416539,1740480614079,-642.24,0.00065753,120]
[354416540,1740480614119,-500.0,0.00065753,120]
[354416541,1740480614159,-501.44927576,0.00065753,120]
[354416542,1740480614201,-503.62868197,0.00065753,120]
[354416543,1740480614244,-504.89260672,0.00065753,120]
[354416544,1740480614278,-500.0,0.00065753,120]
[354416545,1740480614315,-500.0,0.00065753,120]
[354416546,1740480614361,-500.0,0.00065753,120]
[354416547,1740480614400,-500.0,0.00065753,120]
[354416548,1740480614440,-500.0,0.00065753,120]
[354416549,1740480614476,-500.0,0.00065753,120]
[354416550,1740480614514,-500.0,0.00065753,120]
[354416551,1740480614552,-500.0,0.00065753,120]
[354416552,1740480614593,-500.0,0.00065753,120]
[354416553,1740480614632,-531.46,0.00065753,120]
[354416554,1740480614669,-500.0,0.00065753,120]
[354416555,1740480614706,-500.0,0.00065753,120]
[354416556,1740480614742,-316.91118087,0.00065753,30]
[354416557,1740480614782,-9220.63,0.00065753,7]
[354416558,1740480614821,-500.0,0.00065753,120]
[354416559,1740480614862,-572.86,0.00065753,120]
[354416560,1740480614899,-504.4341749,0.00065753,120]
[354416561,1740480614937,-411.59531268,0.00065753,120]
[354416562,1740480614973,-500.0,0.00065753,120]
[354416563,1740480615012,-500.0,0.00065753,120]
[354416564,1740480615053,-500.0,0.00065753,2]
[354416565,1740480615093,-500.0,0.00065753,2]
[354416566,1740480615255,-500.1,0.00065753,120]
[354416567,1740480615289,-844.83,0.00065753,120]
[354416568,1740480615322,-500.0,0.00065753,120]
[354416569,1740480615356,-500.0,0.00065753,120]
[354416570,1740480615388,-501.91692969,0.00065753,120]
[354416571,1740480615420,-500.0,0.00065753,120]
[354416572,1740480615453,-500.0,0.00065753,120]
[354416573,1740480615485,-505.83798457,0.00065753,120]
[354416574,1740480615517,-500.0,0.00065753,120]
[354416575,1740480615548,-500.0,0.00065753,120]
[354416576,1740480615580,-500.0,0.00065753,120]
[354416577,1740480615613,-500.0,0.00065753,120]
[354416578,1740480615644,-385.0961604,0.00065753,120]
[354416579,1740480615676,-503.13047646,0.00065753,120]
[354416580,1740480615707,-1142.33,0.00065753,120]
[354416581,1740480615738,-501.57561116,0.00065753,120]
[354416582,1740480615769,-157.2498082,0.00065753,120]
[354416583,1740480615804,-500.0,0.00065753,120]
[354416584,1740480615840,-500.80539892,0.00065753,120]
[354416585,1740480615874,-500.0,0.00065753,120]
[354416586,1740480615905,-500.0,0.00065753,120]
[354416587,1740480615939,-508.22781214,0.00065753,120]
[354416588,1740480615970,-500.0,0.00065753,120]
[354416589,1740480616008,-500.0,0.00065753,120]
[354416590,1740480616044,-500.0,0.00065753,120]
[354416591,1740480616079,-500.0,0.00065753,120]
[354416592,1740480616111,-500.0,0.00065753,120]
[354416593,1740480616142,-500.0,0.00065753,120]
[354416594,1740480616174,-500.0,0.00065753,30]
[354416595,1740480616206,-500.0,0.00065753,120]
[354416596,1740480616238,-500.0,0.00065753,120]
[354416597,1740480616270,-500.0,0.00065753,120]
[354416598,1740480616302,-500.0,0.00065753,120]
[354416599,1740480616333,-401.43793444,0.00065753,120]
[354416600,1740480616366,-578.89084899,0.00065753,120]
[354416601,1740480616398,-502.40310245,0.00065753,120]
[354416602,1740480616431,-500.0,0.00065753,120]
[354416603,1740480616462,-500.0,0.00065753,120]
[354416604,1740480616493,-500.0,0.00065753,120]
[354416605,1740480616524,-502.30151046,0.00065753,120]
[354416606,1740480616556,-500.0,0.00065753,120]
[354416607,1740480616589,-500.0,0.00065753,120]
[354416608,1740480616621,-501.59471906,0.00065753,120]
[354416609,1740480616653,-500.0,0.00065753,120]
[354416610,1740480616683,-501.59644892,0.00065753,120]
[354416611,1740480616715,-500.0,0.00065753,120]
[354416612,1740480616747,-502.33395693,0.00065753,120]
[354416613,1740480616779,-500.0,0.00065753,120]
[354416614,1740480616812,-501.86252505,0.00065753,120]
[354416615,1740480616846,-500.0,0.00065753,120]
[354416616,1740480616878,-502.02335579,0.00065753,120]
[354416617,1740480616910,-500.0,0.00065753,120]
[354416618,1740480616941,-501.18213648,0.00065753,120]
[354416619,1740480616972,-223.37241764,0.00065753,120]
[354416620,1740480617004,-500.0,0.00065753,120]
[354416621,1740480617040,-605.76,0.00065753,120]
[354416622,1740480617074,-500.0,0.00065753,120]
[354416623,1740480617107,-502.45658752,0.00065753,120]
[354416624,1740480617140,-507.39517375,0.00065753,120]
[354416625,1740480617172,-500.0,0.00065753,120]
[354416626,1740480617204,-500.0,0.00065753,120]
[354416627,1740480617236,-500.0,0.00065753,120]
[354416628,1740480617269,-500.0,0.00065753,120]
[354416629,1740480617302,-503.40948065,0.00065753,120]
[354416630,1740480617334,-500.0,0.00065753,120]
[354416631,1740480617366,-500.0,0.00065753,120]
[354416632,1740480617400,-500.0,0.00065753,120]
[354416633,1740480617433,-500.0,0.00065753,120]
[354416634,1740480617466,-500.0,0.00065753,120]
[354416635,1740480617499,-500.0,0.00065753,120]
[354416636,1740480617530,-501.04884242,0.00065753,120]
[354416637,1740480617562,-500.0,0.00065753,120]
[354416638,1740480617596,-500.0,0.00065753,120]
[354416639,1740480617630,-500.0,0.00065753,120]
[354416640,1740480617661,-3079.36,0.00065753,120]
[354416641,1740480617692,-500.0,0.00065753,120]
[354416642,1740480617724,-500.0,0.00065753,120]
[354416643,1740480617755,-500.0,0.00065753,120]
[354416644,1740480617787,-500.0,0.00065753,120]
[354416645,1740480617820,-526.56,0.00065753,120]
[354416646,1740480617852,-500.0,0.00065753,120]
[354416647,1740480617883,-502.37397303,0.00065753,120]
[354416648,1740480617915,-501.9227434,0.00065753,120]
[354416649,1740480617945,-500.0,0.00065753,120]
[354416650,1740480617977,-500.0,0.00065753,120]
[354416651,1740480618012,-742.1,0.00065753,120]
[354416652,1740480618047,-501.28727088,0.00065753,120]
[354416653,1740480618088,-500.0,0.00065753,120]
[354416654,1740480618223,-500.0,0.00065753,120]
[354416655,1740480618263,-500.0,0.00065753,120]
[354416656,1740480618299,-500.0,0.00065753,120]
[354416657,1740480618334,-500.0,0.00065753,120]
[354416658,1740480618369,-500.0,0.00065753,120]
[354416659,1740480618402,-503.78091031,0.00065753,120]
[354416660,1740480618438,-500.0,0.00065753,120]
[354416661,1740480618475,-500.0,0.00065753,120]
[354416662,1740480618510,-500.0,0.00065753,120]
[354416663,1740480618545,-500.0,0.00065753,120]
[354416664,1740480618581,-500.0,0.00065753,120]
[354416665,1740480618613,-500.0,0.00065753,120]
[354416666,1740480618647,-504.09399235,0.00065753,120]
[354416667,1740480618682,-500.0,0.00065753,3]
[354416668,1740480618714,-500.0,0.00065753,120]
[354416669,1740480618747,-500.0,0.00065753,120]
[354416670,1740480618778,-507.80187267,0.00065753,120]
[354416671,1740480618811,-500.0,0.00065753,120]
[354416672,1740480618849,-500.0,0.00065753,120]
[354416673,1740480618882,-500.0,0.00065753,120]
[354416674,1740480618916,-500.0,0.00065753,120]
[354416675,1740480618950,-646.08,0.00065753,120]
[354416676,1740480618985,-500.0,0.00065753,120]
[354416677,1740480619018,-500.0,0.00065753,120]
[354416678,1740480619053,-546.04050197,0.00065753,120]
[354416679,1740480619085,-500.0,0.00065753,120]
[354416680,1740480619119,-500.0,0.00065753,120]
[354416681,1740480619153,-500.0,0.00065753,120]
[354416682,1740480619187,-500.0,0.00065753,120]
[354416683,1740480619220,-500.0,0.00065753,120]
[354416684,1740480619254,-500.0,0.00065753,120]
[354416685,1740480619288,-500.0,0.00065753,120]
[354416686,1740480619322,-501.1596238,0.00065753,120]
[354416687,1740480619359,-500.0,0.00065753,120]
[354416688,1740480619392,-500.0,0.00065753,120]
[354416689,1740480619426,-500.0,0.00065753,120]
[354416690,1740480619459,-210.06529181,0.00065753,120]
[354416691,1740480619491,-500.0,0.00065753,120]
[354416692,1740480619523,-502.49758187,0.00065753,120]
[354416693,1740480619555,-299.26275805,0.00065753,120]
[354416694,1740480619585,-501.60526529,0.00065753,120]
[354416695,1740480619616,-500.0,0.00065753,120]
[354416696,1740480619646,-505.67,0.00065753,120]
[354416697,1740480619677,-500.0,0.00065753,120]
[354416698,1740480619708,-503.5593662,0.00065753,120]
[354416699,1740480619738,-502.2375042,0.00065753,120]
[354416700,1740480619768,-501.80106223,0.00065753,120]
[354416701,1740480619799,-501.58785204,0.00065753,120]
[354416702,1740480619831,-500.0,0.00065753,120]
[354416703,1740480619863,-500.0,0.00065753,120]
[354416704,1740480619895,-500.0,0.00065753,120]
[354416705,1740480619926,-500.0,0.00065753,120]
[354416706,1740480619957,-501.13795299,0.00065753,120]
[354416707,1740480619988,-500.0,0.00065753,120]
[354416708,1740480620020,-500.0,0.00065753,120]
[354416709,1740480620050,-500.0,0.00065753,120]
[354416710,1740480620083,-503.42859159,0.00065753,120]
[354416711,1740480620118,-500.0,0.00065753,120]
[354416712,1740480620149,-502.36258161,0.00065753,120]
[354416713,1740480620182,-500.0,0.00065753,120]
[354416714,1740480620215,-500.0,0.00065753,120]
[354416715,1740480620247,-500.0,0.00065753,120]
[354416716,1740480620280,-500.0,0.00065753,120]
[354416717,1740480620311,-500.0,0.00065753,120]
[354416718,1740480620343,-500.0,0.00065753,120]
[354416719,1740480620375,-500.0,0.00065753,120]
[354416720,1740480620408,-500.0,0.00065753,120]
[354416721,1740480620441,-500.0,0.00065753,120]
[354416722,1740480620474,-500.0,0.00065753,120]
[354416723,1740480620506,-619.49743679,0.00065753,120]
[354416724,1740480620540,-500.0,0.00065753,120]
[354416725,1740480620572,-500.0,0.00065753,120]
[354416726,1740480620605,-500.0,0.00065753,120]
[354416727,1740480620637,-500.0,0.00065753,120]
[354416728,1740480620668,-502.01579686,0.00065753,120]
[354416729,1740480620701,-500.0,0.00065753,120]
[354416730,1740480620732,-500.0,0.00065753,120]
[354416731,1740480620763,-500.0,0.00065753,120]
[354416732,1740480620794,-500.0,0.00065753,120]
[354416733,1740480620825,-610.57459463,0.00065753,120]
[354416734,1740480620863,-500.0,0.00065753,120]
[354416735,1740480620895,-500.0,0.00065753,120]
[354416736,1740480620927,-500.0,0.00065753,120]
[354416737,1740480620959,-500.0,0.00065753,120]
[354416738,1740480620989,-500.0,0.00065753,120]
[354416739,1740480621020,-505.54149758,0.00065753,120]
[354416740,1740480621155,-501.93692037,0.00065753,120]
[354416741,1740480621187,-299.92183403,0.00065753,120]
[354416742,1740480621219,-500.0,0.00065753,120]
[354416743,1740480621248,-500.0,0.00065753,120]
[354416744,1740480621280,-500.0,0.00065753,120]
[354416745,1740480621310,-502.96490953,0.00065753,120]
[354416746,1740480621339,-644.45170563,0.00065753,120]
[354416747,1740480621370,-581.54593658,0.00065753,120]
[354416748,1740480621401,-500.0,0.00065753,120]
[354416749,1740480621435,-500.0,0.00065753,120]
[354416750,1740480621466,-500.0,0.00065753,120]
[354416751,1740480621498,-495.3103497,0.00065753,120]
[354416752,1740480621527,-316.75640685,0.00065753,120]
[354416753,1740480621558,-500.0,0.00065753,120]
[354416754,1740480621592,-802.11,0.00065753,120]
[354416755,1740480621622,-632.63,0.00065753,120]
[354416756,1740480621653,-500.0,0.00065753,120]
[354416757,1740480621685,-500.0,0.00065753,120]
[354416758,1740480621716,-840.18,0.00065753,120]
[354416759,1740480621747,-500.0,0.00065753,120]
[354416760,1740480621778,-500.0,0.00065753,120]
[354416761,1740480621809,-500.02828448,0.00065753,2]
[354416762,1740480621841,-500.83507592,0.00065753,120]
[354416763,1740480621873,-862.74,0.000658,30]
[354416764,1740480621905,-1000.0,0.00066026,120]
[354416765,1740480621938,-500.0,0.000662,120]
[354416766,1740480621970,-500.0,0.000663,120]
[354416767,1740480622001,-520.12265827,0.00066301,120]
[354416768,1740480622037,-513.54980711,0.00066301,120]
[354416769,1740480622069,-771.74,0.00066301,120]
[354416770,1740480622101,-310.82413492,0.00066301,120]
[354416771,1740480622135,-504.10740599,0.00066301,120]
[354416772,1740480622167,-500.0,0.00066301,120]
[354416773,1740480622201,-500.0,0.00066703,15]
[354416774,1740480622235,-500.0,0.00066703,15]
[354416775,1740480622266,-500.0,0.00066703,15]
[354416776,1740480622298,-771.74,0.00066849,120]
[354416777,1740480622328,-500.0,0.00066849,120]
[354416778,1740480622359,-502.26787618,0.00066938,15]
[354416779,1740480622390,-500.0,0.00066964,7]
[354416780,1740480622420,-184.58600655,0.00067251,15]
[354416781,1740480622450,-185.00000013,0.00067251,15]
[354416782,1740480622480,-500.0,0.00067308,15]
[354416783,1740480622510,-501.41863203,0.00067308,7]
[354416784,1740480622542,-500.0,0.00067393,120]
[354416785,1740480622573,-771.74,0.00067397,120]
[354416786,1740480622603,-500.0,0.00067397,120]
[354416787,1740480622632,-500.0,0.00067512,7]
[354416788,1740480622662,-4863.37770643,0.0006789,6]
[354416789,1740480622694,-305.44,0.00067899,120]
[354416790,1740480622724,-771.74,0.00067945,120]
[354416791,1740480622753,-500.0,0.00067945,120]
[354416792,1740480622783,-771.74,0.00068493,120]
[354416793,1740480622815,-500.0,0.00068493,120]
[354416794,1740480622845,-771.74,0.00069041,120]
[354416795,1740480622874,-500.0,0.00069041,120]
[354416796,1740480622909,-500.65060085,0.00069504,15]
[354416797,1740480622939,-771.74,0.00069589,120]
[354416798,1740480622970,-500.0,0.00069589,120]
[354416799,1740480623001,-771.74,0.00070136,120]
[354416800,1740480623034,-500.0,0.00070136,120]
[354416801,1740480623065,-771.74,0.00070684,120]
[354416802,1740480623097,-500.0,0.00070684,120]
[354416803,1740480623128,-771.74,0.00071232,120]
[354416804,1740480623159,-500.0,0.00071232,120]
[354416805,1740480623189,-771.74,0.0007178,120]
[354416806,1740480623222,-500.0,0.0007178,120]
[354416807,1740480623254,-862.74,0.000718,60]
[354416808,1740480623285,-771.74,0.00072328,120]
[354416809,1740480623318,-500.0,0.00072328,120]
[354416810,1740480623361,-771.74,0.00072876,120]
[354416811,1740480623392,-500.0,0.00072876,120]
[354416812,1740480623425,-771.74,0.00073424,120]
[354416813,1740480623456,-500.0,0.00073424,120]
[354416814,1740480623487,-771.74,0.00073972,120]
[354416815,1740480623519,-348.32,0.00073972,120]
[354416816,1740480623551,-771.74,0.0007452,120]
[354416817,1740480623583,-771.74,0.00075068,120]
[354416818,1740480623615,-771.74,0.00075616,120]
[354416819,1740480623646,-500.0,0.00075972,120]
[354416820,1740480623681,-4863.37770643,0.0007599,6]
[354416821,1740480623714,-771.74,0.00076164,120]
[354416822,1740480623853,-771.74,0.00076712,120]
[354416823,1740480623892,-771.74,0.0007726,120]
[354416824,1740480623926,-771.74,0.00077808,120]
[354416825,1740480623958,-771.7507626,0.00078356,120]
[354416826,1740480623993,-346.54606239,0.00078999,120]
[354416827,1740480624027,-295.26707196,0.00078999,31]
[354416828,1740480624059,-5544.0,0.00079,120]
[354416829,1740480624092,-500.0,0.00080082,120]
[354416830,1740480624125,-500.0,0.00082192,120]
[354416831,1740480624161,-500.0,0.00082192,120]
[354416832,1740480624198,-500.0,0.00082192,120]
[354416833,1740480624235,-500.0,0.00082192,120]
[354416834,1740480624268,-500.0,0.00082192,120]
[354416835,1740480624300,-500.0,0.00082192,120]
[354416836,1740480624335,-500.0,0.00082192,120]
[354416837,1740480624371,-500.0,0.00082192,120]
[354416838,1740480624406,-500.0,0.00082192,120]
[354416839,1740480624439,-500.0,0.00082192,120]
[354416840,1740480624472,-500.0,0.00082192,120]
[354416841,1740480624505,-500.0,0.00082192,120]
[354416842,1740480624536,-500.0,0.00082192,120]
[354416843,1740480624569,-500.0,0.00082192,120]
[354416844,1740480624602,-500.0,0.00082192,120]
[354416845,1740480624635,-500.0,0.00082192,120]
[354416846,1740480624669,-500.0,0.00082192,120]
[354416847,1740480624707,-500.0,0.00082192,120]
[354416848,1740480624740,-500.0,0.00082192,120]
[354416849,1740480624773,-500.0,0.00082192,120]
[354416850,1740480624807,-543.67706486,0.00082192,120]
[354416851,1740480624843,-500.0,0.00082192,120]
[354416852,1740480624877,-500.0,0.00082192,120]
[354416853,1740480624912,-500.0,0.00082192,120]
[354416854,1740480624946,-500.0,0.00082192,120]
[354416855,1740480624981,-500.0,0.00082192,120]
[354416856,1740480625018,-500.0,0.00082192,120]
[354416857,1740480625057,-500.0,0.00082192,120]
[354416858,1740480625093,-500.0,0.00082192,120]
[354416859,1740480625125,-862.74,0.000822,60]
[354416860,1740480625162,-501.57451633,0.00084191,120]
[354416861,1740480625199,-151.0,0.00087,39]
[354416862,1740480625230,-1243.0,0.0008987,120]
[354416863,1740480625262,-1243.0,0.0008987,120]
[354416864,1740480625295,-1243.0,0.0008987,120]
[354416865,1740480625329,-1243.0,0.0008987,120]
[354416866,1740480625364,-1243.0,0.0008987,120]
[354416867,1740480625396,-1243.0,0.0008987,120]
[354416868,1740480625428,-1243.0,0.0008987,120]
[354416869,1740480625460,-1243.0,0.0008987,120]
[354416870,1740480625491,-1243.0,0.0008987,120]
[354416871,1740480625522,-1243.0,0.0008987,120]
[354416872,1740480625554,-1243.0,0.0008987,120]
[354416873,1740480625588,-1243.0,0.0008987,120]
[354416874,1740480625620,-1243.0,0.0008987,120]
[354416875,1740480625651,-1243.0,0.0008987,120]
[354416876,1740480625683,-1243.0,0.0008987,120]
[354416877,1740480625714,-1243.0,0.0008987,120]
[354416878,1740480625747,-1243.0,0.0008987,120]
[354416879,1740480625780,-1243.0,0.0008987,120]
[354416880,1740480625814,-1243.0,0.0008987,120]
[354416881,1740480625846,-1243.0,0.0008987,120]
[354416882,1740480625878,-1243.0,0.0008987,120]
[354416883,1740480625910,-1243.0,0.0008987,120]
[354416884,1740480625941,-1243.0,0.0008987,120]
[354416885,1740480625974,-1243.0,0.0008987,120]
[354416886,1740480626006,-1243.0,0.0008987,120]
[354416887,1740480626041,-1243.0,0.0008987,120]
[354416888,1740480626072,-1243.0,0.0008987,120]
[354416889,1740480626106,-1243.0,0.0008987,120]
[354416890,1740480626138,-1243.0,0.0008987,120]
[354416891,1740480626171,-1243.0,0.0008987,120]
[354416892,1740480626205,-1186.84271598,0.0008987,120]
[354416893,1740480626238,-523.46,0.0009312,120]
[354416894,1740480626270,-753.79,0.0009313,120]
[354416895,1740480626301,-628.16,0.0009313,120]
[354416896,1740480626335,-523.46,0.0009313,120]
[354416897,1740480626372,-210.37,0.0009314,120]
[354416898,1740480626404,-1092.17,0.0009314,120]
[354416899,1740480626437,-1085.45,0.0009314,120]
[354416900,1740480626470,-904.55,0.0009314,120]
[354416901,1740480626503,-14590.1331193,0.0009314,12]
[354416902,1740480626633,-500.0,0.0009315,120]
[354416903,1740480626668,-500.0,0.0009315,120]
[354416904,1740480626701,-500.0,0.0009315,120]
[354416905,1740480626732,-500.0,0.0009315,120]
[354416906,1740480626764,-504.99380493,0.0009315,120]
[354416907,1740480626795,-500.0,0.0009315,120]
[354416908,1740480626828,-500.0,0.0009315,120]
[354416909,1740480626862,-212.60294972,0.0009315,120]
[354416910,1740480626894,-323.50185223,0.0009315,120]
[354416911,1740480626929,-500.0,0.0009315,120]
[354416912,1740480626962,-500.0,0.0009315,120]
[354416913,1740480626995,-500.0,0.0009315,120]
[354416914,1740480627030,-500.0,0.0009315,120]
[354416915,1740480627063,-500.0,0.0009315,120]
[354416916,1740480627096,-500.0,0.0009315,120]
[354416917,1740480627130,-501.46317128,0.0009315,120]
[354416918,1740480627166,-500.0,0.0009315,120]
[354416919,1740480627207,-748.21,0.0009315,120]
[354416920,1740480627244,-500.0,0.0009315,120]
[354416921,1740480627281,-500.0,0.0009315,120]
[354416922,1740480627315,-500.0,0.0009315,120]
[354416923,1740480627352,-681.71,0.0009315,120]
[354416924,1740480627386,-500.0,0.0009315,120]
[354416925,1740480627420,-500.0,0.0009315,120]
[354416926,1740480627454,-500.0,0.0009315,120]
[354416927,1740480627486,-500.0,0.0009315,120]
[354416928,1740480627517,-500.0,0.0009315,120]
[354416929,1740480627548,-505.13654239,0.0009315,120]
[354416930,1740480627583,-600.0,0.0009315,120]
[354416931,1740480627616,-500.0,0.0009315,120]
[354416932,1740480627648,-500.0,0.0009315,120]
[354416933,1740480627679,-500.0,0.0009315,120]
[354416934,1740480627710,-500.0,0.0009315,120]
[354416935,1740480627742,-343.98942279,0.0009315,120]
[354416936,1740480627774,-500.0,0.0009315,120]
[354416937,1740480627807,-981.13,0.0009315,120]
[354416938,1740480627841,-500.0,0.0009315,120]
[354416939,1740480627873,-163.6970146,0.0009315,120]
[354416940,1740480627906,-500.0,0.0009315,120]
[354416941,1740480627939,-500.0,0.0009315,120]
[354416942,1740480627970,-503.49569395,0.0009315,120]
[354416943,1740480628002,-500.0,0.0009315,120]
[354416944,1740480628036,-500.0,0.0009315,120]
[354416945,1740480628069,-500.0,0.0009315,120]
[354416946,1740480628106,-500.0,0.0009315,120]
[354416947,1740480628138,-500.0,0.0009315,120]
[354416948,1740480628172,-505.42808029,0.0009315,120]
[354416949,1740480628206,-500.0,0.0009315,120]
[354416950,1740480628240,-500.0,0.0009315,120]
[354416951,1740480628275,-500.0,0.0009315,120]
[354416952,1740480628307,-500.0,0.0009315,120]
[354416953,1740480628343,-500.0,0.0009315,120]
[354416954,1740480628376,-500.0,0.0009315,120]
[354416955,1740480628408,-500.0,0.0009315,120]
[354416956,1740480628440,-500.0,0.0009315,120]
[354416957,1740480628471,-500.0,0.0009315,120]
[354416958,1740480628502,-500.0,0.0009315,120]
[354416959,1740480628533,-1000.0,0.0009315,20]
[354416960,1740480628564,-506.22114156,0.0009315,120]
[354416961,1740480628596,-500.0,0.0009315,30]
[354416962,1740480628628,-504.17278214,0.0009315,120]
[354416963,1740480628659,-500.0,0.0009315,120]
[354416964,1740480628690,-504.11750272,0.0009315,120]
[354416965,1740480628721,-502.99126634,0.0009315,120]
[354416966,1740480628753,-500.0,0.0009315,120]
[354416967,1740480628785,-500.0,0.0009315,120]
[354416968,1740480628818,-500.0,0.0009315,120]
[354416969,1740480628854,-500.0,0.0009315,120]
[354416970,1740480628887,-500.0,0.0009315,120]
[354416971,1740480628918,-500.0,0.0009315,120]
[354416972,1740480628948,-500.0,0.0009315,120]
[354416973,1740480628978,-2837.22,0.0009315,120]
[354416974,1740480629011,-500.0,0.0009315,120]
[354416975,1740480629048,-504.33146787,0.0009315,120]
[354416976,1740480629079,-500.0,0.0009315,120]
[354416977,1740480629112,-500.0,0.0009315,120]
[354416978,1740480629144,-500.0,0.0009315,120]
[354416979,1740480629269,-500.0,0.0009315,120]
[354416980,1740480629305,-500.0,0.0009315,120]
[354416981,1740480629337,-500.0,0.0009315,120]
[354416982,1740480629368,-642.24,0.0009315,120]
[354416983,1740480629400,-500.0,0.0009315,120]